bitfinex-derivatives/quotes_BTCF0:USTF0_20220103
["timestamp","ask_amount","ask_price","bid_price","bid_amount"]
[1641251182330,0.14033567,46350.0,46336.0,0.14033567]
[1641251182531,0.33033567,46350.0,46336.0,0.14033567]
[1641251184434,0.14033567,46350.0,46336.0,0.14033567]
[1641251184635,0.33333567,46350.0,46336.0,0.14033567]
[1641251184834,0.18,46346.0,46336.0,0.14033567]
[1641251185035,0.33333567,46350.0,46341.0,0.001]
[1641251185238,0.193,46350.0,46342.0,0.18]
[1641251185635,0.193,46350.0,46342.0,0.50509]
[1641251185835,2.2099,46364.0,46342.0,0.50509]
[1641251186037,0.14033567,46356.0,46346.0,0.14033567]
[1641251186237,0.4,46364.0,46348.0,0.02157239]
[1641251186436,0.18,46360.0,46348.0,0.02157239]
[1641251186636,0.186,46356.0,46346.0,0.22633567]
[1641251186836,0.18,46354.0,46346.0,0.22633567]
[1641251187839,0.18,46354.0,46346.0,0.14033567]
[1641251188138,0.18,46354.0,46353.0,0.14033567]
[1641251188538,0.19,46354.0,46353.0,0.14033567]
[1641251189139,0.02157142,46368.0,46353.0,0.14033567]
[1641251189344,0.02157142,46368.0,46354.0,0.08233078]
[1641251189540,0.02157142,46368.0,46359.0,0.001]
[1641251189745,0.18,46365.0,46355.0,0.02156925]
[1641251189940,0.18,46365.0,46359.0,0.14033567]
[1641251190540,0.18,46365.0,46359.0,0.31733567]
[1641251191441,0.18,46363.0,46359.0,0.31733567]
[1641251192443,0.18,46363.0,46359.0,0.14033567]
[1641251192642,0.009794,46366.0,46359.0,0.32033567]
[1641251192843,0.18,46363.0,46359.0,0.32033567]
[1641251193045,0.009794,46366.0,46362.0,0.001]
[1641251193342,0.009794,46366.0,46359.0,0.32033567]
[1641251193942,0.18,46363.0,46359.0,0.14033567]
[1641251194142,0.58,46364.0,46359.0,0.28067134]
[1641251194343,0.4,46364.0,46359.0,0.28067134]
[1641251194543,0.4,46364.0,46359.0,0.45567134]
[1641251195145,0.18,46363.0,46359.0,0.45567134]
[1641251195345,0.18,46363.0,46362.0,0.001]
[1641251195845,0.18,46363.0,46359.0,0.28067134]
[1641251196147,0.4,46364.0,46359.0,0.28067134]
[1641251196547,0.4,46364.0,46359.0,0.45567134]
[1641251197951,0.4,46364.0,46359.0,0.28067134]
[1641251198551,0.4,46364.0,46359.0,0.45467134]
[1641251199555,0.18,46360.0,46359.0,0.174]
[1641251199752,0.27434939,46360.0,46359.0,0.174]
[1641251199956,0.27434939,46360.0,46345.0,1.43392051]
[1641251199957,1.386774,46360.0,46345.0,1.43392051]
[1641251200153,1.134,46358.0,46345.0,1.43392051]
[1641251200355,0.18,46348.0,46345.0,1.43392051]
[1641251200654,1.40026222,46348.0,46347.0,1.3245539]
[1641251200854,1.40026222,46348.0,46347.0,0.146]
[1641251201055,0.26626222,46348.0,46347.0,0.146]
[1641251201256,0.26626093,46348.0,46347.0,0.146]
[1641251201855,0.26626093,46348.0,46341.0,1.43392051]
[1641251202155,0.06,46344.0,46341.0,1.43392051]
[1641251202355,0.18,46344.0,46341.0,1.43392051]
[1641251202658,0.45126093,46348.0,46341.0,1.60892051]
[1641251202855,0.42968,46348.0,46341.0,0.175]
[1641251203056,0.24968,46348.0,46341.0,0.175]
[1641251203255,0.185,46348.0,46341.0,0.175]
[1641251203854,0.18,46350.0,46339.0,0.14033567]
[1641251204056,0.18,46350.0,46342.0,0.9748402]
[1641251204455,0.18,46346.0,46342.0,0.9748402]
[1641251204655,0.182,46350.0,46342.0,1.1478402]
[1641251204856,0.18,46346.0,46342.0,0.173]
[1641251205755,0.182,46350.0,46342.0,0.173]
[1641251205957,1.28412967,46353.0,46339.0,0.14033567]
[1641251205958,0.18,46346.0,46339.0,0.14033567]
[1641251206455,0.15012967,46353.0,46339.0,0.14033567]
[1641251206757,0.362,46346.0,46339.0,0.31833567]
[1641251207073,0.182,46346.0,46339.0,0.31833567]
[1641251207959,0.15012967,46353.0,46339.0,0.14033567]
[1641251208156,0.15012967,46353.0,46339.0,0.22812567]
[1641251208357,0.009794,46353.0,46339.0,0.22812567]
[1641251208558,0.148,46346.0,46339.0,0.41612567]
[1641251209258,0.41518,46346.0,46339.0,0.41612567]
[1641251209456,0.41518,46346.0,46339.0,0.32833567]
[1641251210057,0.26718,46346.0,46339.0,0.14033567]
[1641251210657,0.45218,46346.0,46339.0,0.31333567]
[1641251211860,0.27218,46346.0,46339.0,0.31333567]
[1641251212460,0.08718,46346.0,46339.0,0.14033567]
[1641251212659,0.183,46346.0,46339.0,0.29033567]
[1641251213962,0.14033567,46349.0,46339.0,0.14033567]
[1641251214671,0.31133567,46349.0,46339.0,0.31033567]
[1641251215072,0.18,46347.0,46339.0,0.31033567]
[1641251215672,0.18,46346.0,46339.0,0.31033567]
[1641251215871,0.18,46346.0,46339.0,0.14033567]
[1641251216072,0.14033567,46349.0,46339.0,0.14033567]
[1641251216672,0.18,46347.0,46339.0,0.19533567]
[1641251217676,0.18,46343.0,46339.0,0.19533567]
[1641251217875,0.18,46343.0,46334.0,0.14033567]
[1641251218078,0.18,46335.0,46318.0,1.9112]
[1641251218277,1.314,46325.0,46308.0,1.962]
[1641251218477,1.314,46325.0,46313.0,1.45392051]
[1641251218478,0.18,46320.0,46313.0,1.45392051]
[1641251218777,0.20159376,46320.0,46318.0,0.173]
[1641251219877,0.20159376,46320.0,46313.0,1.45392051]
[1641251220077,0.02159376,46320.0,46313.0,1.45392051]
[1641251220279,0.14033567,46314.0,46313.0,1.45392051]
[1641251220479,0.23314567,46314.0,46313.0,1.45392051]
[1641251220681,0.23314567,46314.0,46313.0,0.2]
[1641251221580,0.14033567,46314.0,46313.0,0.4015891]
[1641251221777,0.14033567,46314.0,46313.0,0.48442849]
[1641251222279,0.14033567,46314.0,46313.0,2.83192352]
[1641251222678,0.14033567,46318.0,46313.0,3.02492352]
[1641251222879,0.14033567,46318.0,46314.0,0.18]
[1641251223079,0.14033567,46318.0,46313.0,2.84492352]
[1641251223681,0.14033567,46318.0,46317.0,1.55218227]
[1641251224682,0.29033567,46318.0,46317.0,1.73918227]
[1641251225083,0.29033567,46318.0,46317.0,1.16231276]
[1641251226086,0.14033567,46318.0,46317.0,0.97531276]
[1641251226687,0.29133567,46318.0,46317.0,1.16131276]
[1641251227289,0.29133567,46318.0,46317.0,1.16231276]
[1641251227488,0.29133567,46318.0,46317.0,0.187]
[1641251227690,0.85341351,46327.0,46317.0,0.24461]
[1641251227887,0.85341351,46327.0,46322.0,0.18]
[1641251228087,0.85341351,46327.0,46325.0,0.02158315]
[1641251228288,0.85341351,46328.0,46325.0,0.02158315]
[1641251228490,0.85341351,46328.0,46323.0,0.14033567]
[1641251228690,0.85341351,46328.0,46325.0,0.197]
[1641251229494,1.314,46326.0,46325.0,1.61525068]
[1641251229687,1.314,46326.0,46318.0,1.55218227]
[1641251229688,1.22856439,46326.0,46318.0,1.55218227]
[1641251229887,0.18,46325.0,46318.0,1.55218227]
[1641251230187,0.12,46325.0,46318.0,1.55218227]
[1641251230391,0.14033567,46321.0,46313.0,0.02]
[1641251230792,0.14033567,46321.0,46314.0,0.07953688]
[1641251231388,0.14033567,46321.0,46320.0,0.02158392]
[1641251231588,0.189,46325.0,46320.0,0.02158392]
[1641251231788,0.85345547,46324.0,46320.0,0.02158392]
[1641251232191,0.85345547,46324.0,46323.0,0.001]
[1641251232390,0.85345547,46324.0,46323.0,0.08238]
[1641251233090,0.87504795,46324.0,46323.0,0.08238]
[1641251233290,0.20159248,46324.0,46320.0,1.74618227]
[1641251233490,0.10300248,46324.0,46320.0,1.74618227]
[1641251233691,0.08141,46324.0,46320.0,1.74618227]
[1641251233891,0.08141,46324.0,46320.0,1.55218227]
[1641251234092,0.18,46321.0,46309.0,1.70430475]
[1641251234292,0.18,46313.0,46309.0,1.70430475]
[1641251234492,0.46067134,46310.0,46301.0,1.70430475]
[1641251234697,0.18,46306.0,46301.0,1.70430475]
[1641251235095,1.134,46305.0,46304.0,0.01219457]
[1641251235295,0.009794,46304.0,46299.0,1.24559285]
[1641251235795,0.009794,46304.0,46297.0,1.24559285]
[1641251235997,0.009794,46304.0,46297.0,2.39859158]
[1641251236201,1.3356051,46298.0,46297.0,2.39859158]
[1641251236397,1.69027044,46298.0,46279.0,2.3354]
[1641251236598,0.20161361,46280.0,46276.0,1.82733868]
[1641251236797,0.26629361,46280.0,46276.0,1.82733868]
[1641251236996,0.14629361,46280.0,46276.0,1.82733868]
[1641251237197,0.02161399,46277.0,46276.0,1.82733868]
[1641251237797,0.06468,46280.0,46267.0,0.18]
[1641251238097,0.06468,46280.0,46270.0,0.18]
[1641251238296,0.009794,46285.0,46270.0,0.18]
[1641251238509,0.14033567,46276.0,46270.0,0.18]
[1641251239299,0.185,46280.0,46275.0,0.18]
[1641251239499,0.185,46280.0,46275.0,0.09837371]
[1641251239900,0.85345547,46283.0,46276.0,0.06633058]
[1641251240101,0.85345547,46291.0,46276.0,0.24633058]
[1641251240303,0.85345547,46291.0,46281.0,0.18]
[1641251240504,0.14033567,46285.0,46281.0,0.18]
[1641251240901,1.03145547,46291.0,46282.0,0.07384697]
[1641251241308,0.178,46291.0,46282.0,0.07384697]
[1641251241502,0.178,46291.0,46286.0,0.18]
[1641251241702,0.178,46291.0,46286.0,0.26132]
[1641251241903,0.85345547,46292.0,46286.0,0.26132]
[1641251242304,0.99379114,46294.0,46286.0,0.08132]
[1641251242505,0.00681707,46291.0,46286.0,0.08132]
[1641251242804,0.182,46292.0,46282.0,0.14033567]
[1641251243104,0.00681707,46290.0,46282.0,0.14033567]
[1641251243303,0.00681707,46291.0,46282.0,0.14033567]
[1641251243504,0.00681707,46289.0,46282.0,0.20369567]
[1641251243705,0.00681707,46290.0,46282.0,0.20369567]
[1641251244006,0.00681707,46291.0,46283.0,0.07278756]
[1641251244505,0.00681707,46289.0,46283.0,0.07278756]
[1641251244803,0.00681707,46290.0,46284.0,0.66124374]
[1641251245004,0.00681707,46288.0,46284.0,0.66124374]
[1641251245205,0.00681707,46289.0,46284.0,0.66124374]
[1641251245606,0.00681707,46287.0,46284.0,0.66124374]
[1641251245805,0.00681707,46288.0,46284.0,0.66124374]
[1641251246006,0.00681707,46288.0,46286.0,0.18]
[1641251246205,0.85345547,46292.0,46286.0,0.18]
[1641251246405,0.85345547,46294.0,46289.0,0.14033567]
[1641251246606,0.85345547,46294.0,46293.0,0.18]
[1641251246804,0.85345547,46294.0,46293.0,0.24809]
[1641251247204,1.21279489,46296.0,46293.0,0.327414]
[1641251247405,0.85345547,46298.0,46295.0,0.001]
[1641251247605,0.85345547,46298.0,46297.0,0.001]
[1641251248205,0.85345547,46298.0,46297.0,0.06089569]
[1641251248406,1.21279489,46300.0,46297.0,0.06089569]
[1641251248607,0.85345547,46303.0,46297.0,0.20123136]
[1641251249005,0.85345547,46303.0,46297.0,0.14033567]
[1641251249807,1.21279489,46305.0,46297.0,0.14033567]
[1641251250016,0.009794,46307.0,46297.0,0.14033567]
[1641251250209,0.009794,46307.0,46298.0,0.08594991]
[1641251250610,0.194794,46307.0,46298.0,0.08594991]
[1641251251009,1.03845547,46307.0,46304.0,0.18]
[1641251251209,1.03845547,46307.0,46306.0,0.02159055]
[1641251251811,1.03845547,46307.0,46306.0,0.02259055]
[1641251252009,0.85345547,46307.0,46306.0,0.02259055]
[1641251252210,0.85345547,46307.0,46306.0,0.12019715]
[1641251252509,1.35313056,46309.0,46306.0,2.19412224]
[1641251252711,1.35313056,46309.0,46306.0,2.09551564]
[1641251252712,0.14033567,46309.0,46306.0,2.09551564]
[1641251253110,0.14033567,46309.0,46306.0,2.07392509]
[1641251253509,0.18,46307.0,46306.0,2.07392509]
[1641251253710,0.18,46307.0,46306.0,1.4156988]
[1641251253711,0.24601,46307.0,46306.0,1.4156988]
[1641251253911,0.26761009,46307.0,46306.0,1.4156988]
[1641251254313,1.40161009,46307.0,46299.0,1.53621561]
[1641251254512,0.20160381,46300.0,46299.0,1.53621561]
[1641251254711,1.33560381,46300.0,46299.0,1.53621561]
[1641251255310,1.33560381,46300.0,46291.0,2.28168824]
[1641251255512,0.18,46297.0,46291.0,2.28168824]
[1641251255713,0.25542,46297.0,46291.0,2.28168824]
[1641251256213,0.07542,46297.0,46291.0,2.28168824]
[1641251256514,0.25542,46297.0,46289.0,0.14033567]
[1641251256714,0.25842,46297.0,46291.0,0.111]
[1641251257312,0.25842,46297.0,46291.0,0.13259897]
[1641251257515,0.25842,46297.0,46294.0,0.18]
[1641251258012,0.07542,46297.0,46294.0,0.18]
[1641251258212,0.99417159,46301.0,46291.0,0.02159897]
[1641251258412,0.99417159,46301.0,46289.0,0.14033567]
[1641251258812,1.18017159,46301.0,46291.0,0.172]
[1641251259615,0.18,46297.0,46291.0,0.172]
[1641251260012,0.18,46297.0,46290.0,1.53621561]
[1641251260213,0.18,46297.0,46293.0,1.42166228]
[1641251260712,0.366,46297.0,46293.0,1.58866228]
[1641251261314,0.00681513,46296.0,46293.0,1.58866228]
[1641251262013,0.00681513,46296.0,46293.0,1.42166228]
[1641251262713,0.17881513,46296.0,46293.0,0.169]
[1641251263327,0.00681513,46295.0,46293.0,0.169]
[1641251263913,0.00681513,46295.0,46291.0,1.42166228]
[1641251264515,0.00681513,46295.0,46289.0,0.14033567]
[1641251264516,0.00681513,46295.0,46293.0,1.42166228]
[1641251264718,0.183,46295.0,46293.0,1.42166228]
[1641251264917,0.00681513,46294.0,46293.0,1.42166228]
[1641251265517,0.00681513,46294.0,46291.0,1.60066228]
[1641251266016,0.00681513,46294.0,46291.0,1.42166228]
[1641251266617,0.00681513,46296.0,46291.0,1.42166228]
[1641251266817,0.00681513,46293.0,46291.0,1.69355228]
[1641251267017,0.187,46294.0,46292.0,0.0750354]
[1641251267619,0.187,46294.0,46291.0,1.69355228]
[1641251267821,0.187,46294.0,46291.0,1.60466228]
[1641251268021,0.85383592,46297.0,46292.0,0.08913647]
[1641251268421,0.85383592,46297.0,46291.0,1.42166228]
[1641251268622,0.85383592,46298.0,46291.0,1.42166228]
[1641251268821,0.185,46297.0,46292.0,0.182]
[1641251269422,0.185,46297.0,46292.0,1.60366228]
[1641251270022,0.85383592,46299.0,46292.0,1.42166228]
[1641251270424,0.85383592,46299.0,46293.0,0.57220019]
[1641251270837,1.03083592,46299.0,46293.0,0.57220019]
[1641251271442,0.85383592,46298.0,46293.0,0.57220019]
[1641251272642,1.03683592,46298.0,46293.0,0.75020019]
[1641251273143,0.183,46298.0,46293.0,0.178]
[1641251274144,0.85383592,46299.0,46292.0,1.42166228]
[1641251274543,0.85383592,46299.0,46293.0,0.01219663]
[1641251274845,1.03583592,46299.0,46294.0,0.57220019]
[1641251275343,1.03583592,46299.0,46294.0,0.64076019]
[1641251275544,1.03583592,46299.0,46295.0,0.01219597]
[1641251275945,0.85383592,46299.0,46295.0,0.01219597]
[1641251276546,0.85383592,46299.0,46295.0,0.15253164]
[1641251276744,0.98083592,46299.0,46295.0,0.33853164]
[1641251276946,0.127,46299.0,46296.0,1.99386247]
[1641251277447,0.127,46299.0,46296.0,2.00605844]
[1641251277644,0.127,46299.0,46297.0,1.43385825]
[1641251278245,0.127,46299.0,46298.0,0.01219597]
[1641251278646,0.85383592,46304.0,46298.0,0.01219597]
[1641251278847,1.39279489,46306.0,46298.0,2.19405844]
[1641251278848,0.85383592,46305.0,46298.0,2.19405844]
[1641251279247,0.85383592,46305.0,46299.0,0.01219597]
[1641251280049,0.85383592,46305.0,46299.0,0.58439616]
[1641251280248,0.85383592,46304.0,46299.0,0.58439616]
[1641251280448,0.85383592,46304.0,46300.0,0.01219597]
[1641251280748,1.03783592,46304.0,46300.0,0.01219597]
[1641251281149,1.03783592,46304.0,46300.0,0.58439616]
[1641251281750,1.03783592,46304.0,46300.0,0.57220019]
[1641251281949,0.85383592,46303.0,46301.0,0.57220019]
[1641251282352,0.00681524,46302.0,46301.0,0.57220019]
[1641251282749,0.00681524,46302.0,46301.0,0.18]
[1641251284249,0.00681524,46302.0,46296.0,1.42166228]
[1641251284552,0.00681524,46302.0,46297.0,0.01219575]
[1641251284751,0.18981524,46302.0,46297.0,0.01219575]
[1641251285152,0.00681524,46301.0,46297.0,0.01219575]
[1641251286753,0.13981524,46301.0,46297.0,0.19719575]
[1641251286951,0.133,46301.0,46297.0,1.61885803]
[1641251287151,0.00681524,46300.0,46298.0,0.01219575]
[1641251288652,0.00681524,46302.0,46298.0,0.01219575]
[1641251288854,0.00681524,46299.0,46298.0,0.19619575]
[1641251289052,0.183,46300.0,46298.0,0.19619575]
[1641251289553,0.00681524,46299.0,46298.0,0.19619575]
[1641251289752,0.00681524,46299.0,46298.0,0.184]
[1641251290257,0.00681524,46299.0,46296.0,1.42166228]
[1641251290654,0.00681524,46302.0,46296.0,1.42166228]
[1641251290854,0.00681524,46298.0,46296.0,1.60966228]
[1641251291055,0.00681524,46301.0,46296.0,1.60966228]
[1641251291455,0.00681524,46297.0,46296.0,1.60966228]
[1641251291655,0.00681524,46300.0,46296.0,1.60966228]
[1641251292056,0.00681524,46297.0,46296.0,1.42166228]
[1641251292255,0.00681524,46299.0,46296.0,1.42166228]
[1641251292457,0.00681524,46297.0,46296.0,1.42166228]
[1641251292657,0.00681524,46298.0,46296.0,1.42166228]
[1641251292959,0.85383592,46303.0,46296.0,1.68185228]
[1641251292960,0.00681524,46297.0,46296.0,1.68185228]
[1641251293457,0.00681524,46302.0,46296.0,0.26019]
[1641251293658,0.00681524,46297.0,46296.0,0.26019]
[1641251293858,0.00681524,46301.0,46296.0,0.26019]
[1641251294161,0.00681524,46304.0,46296.0,0.07019]
[1641251294462,0.00681524,46304.0,46298.0,0.20159594]
[1641251294661,0.00681524,46304.0,46302.0,0.20159405]
[1641251294860,1.21279489,46308.0,46302.0,0.20159405]
[1641251294861,0.12644605,46308.0,46303.0,0.16192807]
[1641251295065,0.18,46323.0,46307.0,0.001]
[1641251295259,0.14033567,46325.0,46307.0,0.08302]
[1641251295463,0.14033567,46325.0,46307.0,0.26302]
[1641251295661,0.14033567,46325.0,46318.0,0.18]
[1641251295862,0.14033567,46325.0,46318.0,0.25094]
[1641251296061,0.00589286,46324.0,46320.0,0.18]
[1641251296762,0.00589286,46324.0,46320.0,0.198]
[1641251297164,0.18,46323.0,46320.0,0.198]
[1641251297362,1.13989286,46324.0,46320.0,0.0001]
[1641251297562,0.00589286,46322.0,46320.0,0.0001]
[1641251297965,0.02159292,46322.0,46320.0,0.0001]
[1641251298264,0.00589286,46321.0,46318.0,1.42520617]
[1641251298862,0.19489286,46321.0,46318.0,1.42520617]
[1641251299063,0.189,46321.0,46315.0,0.50206329]
[1641251299263,0.00589286,46320.0,46315.0,0.50206329]
[1641251300263,0.00589286,46320.0,46317.0,0.02158698]
[1641251300665,0.00589286,46320.0,46318.0,0.08560525]
[1641251300867,0.17689286,46320.0,46318.0,0.08560525]
[1641251301065,0.17689286,46320.0,46317.0,0.12658698]
[1641251301268,0.00589286,46319.0,46317.0,0.12658698]
[1641251302067,0.00589286,46319.0,46318.0,0.18]
[1641251302768,0.15289286,46319.0,46318.0,0.186]
[1641251303369,0.15289286,46319.0,46318.0,0.366]
[1641251303570,0.15289286,46319.0,46318.0,0.186]
[1641251303768,0.15289286,46319.0,46318.0,0.187]
[1641251303970,0.15289286,46319.0,46318.0,0.186]
[1641251304169,0.00589286,46319.0,46317.0,1.42520617]
[1641251304669,0.18,46322.0,46317.0,1.42520617]
[1641251304871,0.184,46319.0,46318.0,0.01219143]
[1641251305169,0.364,46319.0,46318.0,0.01219143]
[1641251305368,0.364,46319.0,46317.0,1.60520617]
[1641251305980,0.364,46319.0,46317.0,0.18]
[1641251306178,0.18,46319.0,46314.0,1.56554184]
[1641251306778,0.368,46319.0,46315.0,0.01219199]
[1641251308078,0.85335092,46320.0,46315.0,0.01219199]
[1641251308678,0.85335092,46320.0,46316.0,0.08329963]
[1641251308878,1.03035092,46320.0,46316.0,0.08329963]
[1641251309077,1.03035092,46320.0,46317.0,0.01219199]
[1641251309279,0.177,46320.0,46317.0,0.01219199]
[1641251310179,0.85335092,46322.0,46316.0,0.01219199]
[1641251310479,0.85335092,46323.0,46318.0,0.01219199]
[1641251310682,0.85335092,46323.0,46318.0,0.07849]
[1641251310879,0.193,46322.0,46318.0,0.07849]
[1641251311280,1.04635092,46322.0,46318.0,0.07849]
[1641251312194,0.85335092,46322.0,46318.0,0.07849]
[1641251312695,0.85335092,46321.0,46318.0,0.07849]
[1641251314298,0.85335092,46322.0,46318.0,0.07849]
[1641251314498,0.85335092,46322.0,46319.0,0.01219109]
[1641251314898,0.158,46322.0,46318.0,0.22449]
[1641251315397,0.18,46319.0,46318.0,0.22449]
[1641251315698,0.18,46319.0,46318.0,0.146]
[1641251315899,1.314,46319.0,46318.0,0.146]
[1641251316097,1.314,46319.0,46316.0,1.42520617]
[1641251316498,1.314,46319.0,46308.0,1.8568]
[1641251316698,0.18,46314.0,46308.0,1.8568]
[1641251316899,0.18,46310.0,46305.0,0.84818101]
[1641251317100,0.24257,46310.0,46305.0,0.84818101]
[1641251317299,0.24257,46310.0,46309.0,0.74547263]
[1641251318703,0.06257,46310.0,46299.0,0.90740357]
[1641251318904,0.42857,46310.0,46299.0,0.90740357]
[1641251319103,0.24857,46310.0,46299.0,0.90740357]
[1641251319304,0.18,46308.0,46304.0,0.01219451]
[1641251319904,0.00589766,46307.0,46300.0,0.01219451]
[1641251320105,0.00589766,46307.0,46305.0,0.01219451]
[1641251320505,0.00589766,46307.0,46301.0,0.01219451]
[1641251320707,0.00589766,46307.0,46306.0,0.01219451]
[1641251320908,0.188,46307.0,46302.0,0.01219451]
[1641251321209,0.19389766,46307.0,46306.0,0.01219451]
[1641251321406,0.00589766,46306.0,46303.0,0.01219451]
[1641251321606,0.19389766,46307.0,46303.0,1.42573221]
[1641251322008,0.00589766,46305.0,46303.0,1.42573221]
[1641251322306,0.00589766,46304.0,46303.0,1.42573221]
[1641251322905,0.19,46304.0,46303.0,1.42573221]
[1641251323106,0.19589766,46304.0,46303.0,1.42573221]
[1641251323808,0.19589766,46304.0,46299.0,0.16193094]
[1641251324107,0.00589766,46303.0,46299.0,0.16193094]
[1641251324807,0.19,46303.0,46299.0,0.16193094]
[1641251325006,0.00589766,46302.0,46299.0,0.16193094]
[1641251326510,0.00589766,46307.0,46299.0,0.16193094]
[1641251326908,0.183,46302.0,46299.0,0.16193094]
[1641251327510,0.00589766,46301.0,46299.0,0.16193094]
[1641251328610,0.00589766,46301.0,46299.0,0.14033567]
[1641251328912,0.18,46301.0,46299.0,0.14033567]
[1641251329113,0.00589766,46300.0,46299.0,0.14033567]
[1641251330610,0.00589766,46308.0,46299.0,0.14033567]
[1641251330812,0.00589766,46300.0,46299.0,0.14033567]
[1641251331111,0.18,46300.0,46299.0,0.14033567]
[1641251331313,0.18589766,46300.0,46299.0,0.14033567]
[1641251332411,0.00589766,46300.0,46299.0,0.14033567]
[1641251332613,0.00589766,46300.0,46299.0,0.72152621]
[1641251332811,0.00589766,46304.0,46299.0,0.72152621]
[1641251333014,0.18489766,46300.0,46299.0,0.72152621]
[1641251334013,0.18489766,46300.0,46299.0,0.14033567]
[1641251334216,0.00589766,46300.0,46299.0,0.14033567]
[1641251334714,0.00589766,46304.0,46299.0,0.72152621]
[1641251334914,0.18889766,46300.0,46299.0,0.78420621]
[1641251336014,0.18889766,46300.0,46299.0,0.20301567]
[1641251336215,0.00589766,46300.0,46299.0,0.14033567]
[1641251336615,0.18,46305.0,46299.0,0.14033567]
[1641251336817,0.18589766,46300.0,46299.0,0.15253044]
[1641251337014,0.36389766,46300.0,46299.0,0.14033567]
[1641251337215,0.178,46300.0,46299.0,0.14033567]
[1641251337415,0.36389766,46300.0,46299.0,0.14033567]
[1641251338315,0.18589766,46300.0,46299.0,0.14033567]
[1641251338916,0.19589766,46300.0,46299.0,0.14033567]
[1641251340416,0.00589766,46300.0,46299.0,0.14033567]
[1641251340818,0.009794,46304.0,46299.0,0.14033567]
[1641251340819,0.00589766,46303.0,46299.0,0.14033567]
[1641251341019,0.19,46300.0,46299.0,0.14033567]
[1641251341218,0.19589766,46300.0,46299.0,0.14033567]
[1641251342319,0.00589766,46300.0,46299.0,0.14033567]
[1641251342718,0.00589766,46303.0,46299.0,0.14033567]
[1641251342918,0.20089766,46300.0,46299.0,0.14033567]
[1641251343119,0.195,46300.0,46299.0,0.14033567]
[1641251343320,0.20089766,46300.0,46299.0,0.14033567]
[1641251344422,0.00589766,46300.0,46299.0,0.14033567]
[1641251344821,0.00589766,46302.0,46299.0,0.14033567]
[1641251345020,0.19789766,46300.0,46299.0,0.14033567]
[1641251345221,0.192,46300.0,46299.0,0.14033567]
[1641251345621,0.19789766,46300.0,46299.0,0.14033567]
[1641251346321,0.00589766,46300.0,46299.0,0.14033567]
[1641251346721,0.00589766,46303.0,46299.0,0.14033567]
[1641251346924,0.19889766,46300.0,46299.0,0.14033567]
[1641251347122,0.193,46300.0,46299.0,0.14033567]
[1641251347322,0.19889766,46300.0,46299.0,0.14033567]
[1641251348224,0.00589766,46300.0,46299.0,0.14033567]
[1641251348829,0.00589766,46303.0,46299.0,0.14033567]
[1641251349126,0.20089766,46300.0,46299.0,0.14033567]
[1641251349327,0.195,46300.0,46299.0,0.14033567]
[1641251349630,0.20089766,46300.0,46299.0,0.14033567]
[1641251350226,0.00589766,46300.0,46299.0,0.14033567]
[1641251350828,0.00589766,46303.0,46299.0,0.14033567]
[1641251351026,0.19689766,46300.0,46299.0,0.14033567]
[1641251351229,0.191,46300.0,46299.0,0.14033567]
[1641251351427,0.19689766,46300.0,46299.0,0.14033567]
[1641251351927,0.19689766,46300.0,46299.0,1.56381905]
[1641251352327,0.00589766,46300.0,46299.0,1.57601402]
[1641251352727,0.00589766,46303.0,46299.0,1.57601402]
[1641251352927,0.19789766,46300.0,46299.0,0.15253064]
[1641251353129,0.19789766,46300.0,46299.0,0.14033567]
[1641251353328,0.192,46300.0,46299.0,0.14033567]
[1641251353730,0.19789766,46300.0,46299.0,0.14033567]
[1641251354230,0.00589766,46300.0,46299.0,0.14033567]
[1641251354637,0.00589766,46303.0,46299.0,0.14033567]
[1641251354830,0.00589766,46300.0,46299.0,0.14033567]
[1641251355032,0.191,46300.0,46299.0,0.14033567]
[1641251355231,0.19689766,46300.0,46299.0,0.14033567]
[1641251356230,0.00589766,46300.0,46299.0,0.14033567]
[1641251356630,0.00589766,46303.0,46299.0,0.14033567]
[1641251356831,0.00589766,46300.0,46299.0,0.14033567]
[1641251357030,0.192,46300.0,46299.0,0.14033567]
[1641251357233,0.19789766,46300.0,46299.0,0.14033567]
[1641251358332,0.00589766,46300.0,46299.0,0.14033567]
[1641251359034,0.191,46300.0,46299.0,0.14033567]
[1641251359235,0.19689766,46300.0,46299.0,0.14033567]
[1641251360436,0.00589766,46300.0,46299.0,0.14033567]
[1641251360849,0.009794,46304.0,46299.0,0.14033567]
[1641251360850,0.00589766,46303.0,46299.0,0.14033567]
[1641251361037,0.195,46300.0,46299.0,0.14033567]
[1641251361238,0.20089766,46300.0,46299.0,0.14033567]
[1641251361436,0.20089766,46300.0,46299.0,0.16193095]
[1641251362037,0.14939766,46300.0,46299.0,0.16193095]
[1641251362454,0.00589766,46300.0,46299.0,0.16193095]
[1641251362853,0.00589766,46308.0,46299.0,0.16193095]
[1641251363054,0.00589766,46308.0,46299.0,0.41077095]
[1641251363254,0.00589766,46300.0,46299.0,0.41077095]
[1641251363455,0.00589766,46307.0,46299.0,0.41077095]
[1641251363655,0.00589766,46300.0,46299.0,0.41077095]
[1641251363856,0.00589766,46306.0,46299.0,0.41077095]
[1641251364458,0.00589766,46308.0,46299.0,0.21977095]
[1641251364658,0.00589766,46305.0,46299.0,0.21977095]
[1641251364858,0.00589766,46307.0,46299.0,0.21977095]
[1641251365060,0.00589766,46304.0,46299.0,0.21977095]
[1641251365257,0.00589766,46306.0,46299.0,0.21977095]
[1641251365658,0.00589766,46303.0,46299.0,0.21977095]
[1641251365860,0.00589766,46305.0,46299.0,0.21977095]
[1641251366058,0.00589766,46302.0,46299.0,0.21977095]
[1641251366259,0.00589766,46304.0,46299.0,0.21977095]
[1641251366557,0.00589766,46301.0,46299.0,0.21977095]
[1641251366758,0.00589766,46303.0,46299.0,0.21977095]
[1641251367159,0.00589766,46300.0,46299.0,0.21977095]
[1641251367360,0.00589766,46302.0,46299.0,0.21977095]
[1641251367557,0.00589766,46300.0,46299.0,0.21977095]
[1641251367760,0.00589766,46301.0,46299.0,0.21977095]
[1641251367959,0.00589766,46300.0,46299.0,0.77624626]
[1641251368559,0.00589766,46303.0,46299.0,0.78844127]
[1641251368759,0.00589766,46300.0,46299.0,0.78844127]
[1641251368962,0.15889766,46300.0,46299.0,0.78844127]
[1641251369162,0.153,46300.0,46299.0,0.77624626]
[1641251369363,0.15889766,46300.0,46299.0,0.77624626]
[1641251370462,0.00589766,46300.0,46299.0,0.77624626]